bitfinex/quotes_ETHUSD_20260114
["timestamp","ask_amount","ask_price","bid_price","bid_amount"]
[1768425401014,0.001,3364.7,3363.9,0.97948116]
[1768425401199,0.001,3364.7,3364.1,0.97948116]
[1768425401394,0.001,3364.7,3364.2,1.37448116]
[1768425401810,0.002,3365.1,3364.3,0.97948116]
[1768425403007,0.002,3365.1,3364.4,3.95177934]
[1768425403211,0.002,3365.1,3364.4,0.97948116]
[1768425403416,0.002,3365.1,3364.5,0.43468306]
[1768425405724,0.002,3365.1,3364.5,4.38636973]
[1768425406113,0.002,3365.1,3364.5,1.41416422]
[1768425407105,0.002,3365.1,3364.5,4.38634873]
[1768425407811,0.002,3365.1,3364.6,0.97948116]
[1768425408017,0.002,3365.1,3364.7,0.43863487]
[1768425410130,0.001,3364.8,3364.7,0.43863487]
[1768425410298,0.002,3365.1,3364.7,0.43863487]
[1768425411692,0.002,3365.1,3364.6,0.97948116]
[1768425411894,0.002,3365.1,3364.7,0.395]
[1768425412927,0.002,3365.1,3364.8,0.395]
[1768425419627,0.002,3365.1,3364.8,1.32402648]
[1768425419821,0.001,3365.4,3364.9,0.95874504]
[1768425420021,0.001,3365.4,3364.8,0.395]
[1768425420729,0.001,3365.4,3364.9,0.92902648]
[1768425421338,0.001,3365.4,3365.0,0.92902648]
[1768425421699,0.94383127,3365.4,3364.8,1.65115864]
[1768425421925,0.94383127,3365.4,3364.8,0.395]
[1768425422341,0.94383127,3365.4,3364.0,0.92902648]
[1768425422647,0.94283127,3365.2,3364.1,4.29658933]
[1768425422932,3.91450514,3365.2,3364.2,3.93118398]
[1768425423133,6.88617901,3365.2,3364.2,0.95875122]
[1768425423334,6.88617901,3365.2,3364.2,0.92902648]
[1768425423335,0.94283127,3365.1,3364.2,0.92902648]
[1768425424930,0.94483127,3365.1,3364.2,0.92902648]
[1768425425130,2.9717682,3365.0,3364.2,0.92902648]
[1768425425548,3.91459947,3365.0,3364.1,0.395]
[1768425426213,3.91459947,3365.0,3364.1,1.32402648]
[1768425427110,0.94283127,3364.9,3364.1,1.32402648]
[1768425427919,0.94283127,3364.9,3363.9,0.92902648]
[1768425428123,0.94283127,3364.9,3364.0,0.395]
[1768425429046,3.91477611,3364.8,3364.0,0.395]
[1768425429341,3.91477611,3364.8,3363.8,0.002]
[1768425429342,0.94283127,3364.7,3363.8,0.002]
[1768425429516,1.63150337,3364.6,3363.8,0.002]
[1768425431246,2.97220983,3364.5,3363.8,0.002]
[1768425433515,3.72950685,3365.0,3363.8,0.93102648]
[1768425433516,0.94283127,3364.8,3363.8,0.93102648]
[1768425433721,2.97208529,3364.7,3363.9,0.95875387]
[1768425436750,3.91481889,3364.8,3363.9,0.95875387]
[1768425436918,3.91481889,3364.8,3364.2,0.002]
[1768425437119,0.94283127,3364.7,3364.2,0.002]
[1768425437349,2.97198762,3364.8,3364.2,0.002]
[1768425437849,3.66085626,3364.8,3364.2,0.002]
[1768425438840,0.94283127,3364.9,3364.2,0.93102648]
[1768425438841,2.97186999,3364.9,3364.2,0.93102648]
[1768425439018,2.97185456,3365.0,3364.2,0.93102648]
[1768425439520,2.9737074,3365.1,3364.2,0.93102648]
[1768425440015,3.91653867,3365.1,3364.2,0.93102648]
[1768425440214,3.91653867,3365.1,3364.3,0.92902648]
[1768425440549,0.93390656,3365.0,3364.3,0.395]
[1768425440945,0.93390656,3364.8,3364.3,0.395]
[1768425442556,2.97185651,3364.9,3364.3,0.395]
[1768425443238,5.94371302,3364.9,3364.3,0.395]
[1768425445648,5.94371302,3364.9,3364.2,0.002]
[1768425445649,5.94371302,3364.9,3364.2,1.35628324]
[1768425447361,2.97185651,3364.9,3364.2,1.35628324]
[1768425448553,5.94371302,3364.9,3364.2,1.35628324]
[1768425450258,2.97185651,3364.9,3364.2,1.35628324]
[1768425450760,2.97185651,3364.9,3364.5,0.002]
[1768425451439,5.94371302,3364.9,3364.5,0.002]
[1768425452224,2.97179551,3365.0,3364.5,0.002]
[1768425453659,2.97370712,3365.1,3364.5,0.002]
[1768425453856,3.73353961,3365.1,3364.5,0.002]
[1768425454063,4.69699396,3365.1,3364.5,0.002]
[1768425454630,7.66870108,3365.1,3364.5,0.002]
[1768425458429,6.70524673,3365.1,3364.5,0.96128324]
[1768425458762,0.002,3365.1,3364.5,0.96128324]
[1768425459133,0.002,3365.1,3364.6,0.95928324]
[1768425459735,0.96545435,3366.0,3365.0,0.95928324]
[1768425460049,0.96545435,3366.0,3364.6,5.32439309]
[1768425460050,3.93635823,3366.0,3365.2,0.95928324]
[1768425460437,0.002,3366.0,3365.2,0.95928324]
[1768425460632,0.002,3366.5,3365.7,0.95928324]
[1768425460955,0.002,3366.5,3365.8,0.95928324]
[1768425461151,0.002,3366.5,3365.9,1.35231834]
[1768425461356,0.002,3366.5,3366.0,0.95928324]
[1768425462242,0.002,3366.5,3366.1,0.95928324]
[1768425462836,0.002,3366.8,3366.4,0.95928324]
[1768425463651,0.002,3366.8,3366.2,2.97064562]
[1768425463652,0.0487,3367.0,3366.6,0.95928324]
[1768425464055,0.002,3367.1,3366.6,0.95928324]
[1768425464257,0.23786309,3369.7,3366.1,8.26544648]
[1768425464258,0.002,3368.8,3367.1,0.95928324]
[1768425464457,0.96345435,3368.1,3367.2,1.02039551]
[1768425464657,2.96894483,3368.2,3367.3,0.95928324]
[1768425465670,3.93213646,3368.5,3367.4,0.95928324]
[1768425465840,2.96859229,3368.6,3367.4,0.95928324]
[1768425466763,5.93701072,3368.7,3367.5,0.95928324]
[1768425466963,2.96850536,3368.7,3367.5,0.95928324]
[1768425467265,2.97043549,3368.8,3367.7,0.95928324]
[1768425467266,5.9388321,3368.8,3367.7,0.95928324]
[1768425467656,2.97041605,3368.8,3367.7,0.95928324]
[1768425467856,2.97041605,3368.8,3367.8,0.95928324]
[1768425468269,5.9388321,3368.8,3367.8,0.95928324]
[1768425468568,2.97041605,3368.8,3367.8,0.95928324]
[1768425468770,2.97041605,3368.8,3368.0,0.95928324]
[1768425468979,2.97041605,3368.8,3368.1,1.35428324]
[1768425469644,0.002,3368.8,3368.1,1.35428324]
[1768425469845,0.002,3368.8,3368.2,0.95928324]
[1768425473479,0.002,3369.0,3368.1,0.395]
[1768425473480,0.002,3369.0,3368.5,0.93451374]
[1768425474773,0.002,3369.0,3368.6,0.93451374]
[1768425475073,0.002,3369.4,3368.9,0.93451374]
[1768425475273,0.002,3369.5,3369.2,0.93451374]
[1768425477456,0.002,3369.8,3369.5,0.93451374]
[1768425478882,0.002,3369.8,3369.0,0.395]
[1768425479186,0.002,3369.8,3369.1,0.93451374]
[1768425479843,0.95714823,3369.8,3368.5,1.32485651]
[1768425480043,0.95714823,3369.8,3368.9,0.395]
[1768425480966,6.89039469,3369.7,3368.9,0.395]
[1768425481176,2.96762323,3369.7,3368.9,1.32951374]
[1768425481648,2.96954265,3369.8,3368.9,1.32951374]
[1768425481649,0.002,3369.8,3369.0,0.96419613]
[1768425481851,0.002,3369.8,3369.2,0.93451374]
[1768425483767,0.95714823,3369.8,3368.2,0.93451374]
[1768425483956,0.95714823,3369.8,3368.3,0.395]
[1768425485073,0.95514823,3369.6,3368.3,0.395]
[1768425485272,0.95514823,3369.4,3368.3,0.395]
[1768425486853,0.95514823,3369.4,3368.1,0.395]
[1768425487055,0.95514823,3369.2,3367.8,0.93451374]
[1768425487254,0.95514823,3369.2,3367.9,0.395]
[1768425487477,0.95514823,3369.2,3367.9,1.32951374]
[1768425487653,0.95514823,3369.0,3367.9,2.05633968]
[1768425489179,2.96832794,3368.9,3368.0,0.93451374]
[1768425489476,0.002,3368.7,3368.2,0.93451374]
[1768425489876,0.002,3368.7,3367.9,0.93451374]
[1768425490078,0.002,3368.7,3368.0,1.32951374]
[1768425491075,0.002,3368.7,3368.1,0.93451374]
[1768425492189,0.002,3368.7,3368.3,0.93451374]
[1768425492368,0.002,3368.7,3368.4,0.42300575]
[1768425492767,0.002,3368.7,3368.4,0.39331807]
[1768425492976,2.47222443,3369.1,3368.3,0.93451374]
[1768425493172,5.44044886,3369.1,3368.3,0.93451374]
[1768425493374,2.47222443,3369.1,3368.3,0.93451374]
[1768425494357,3.92321186,3369.2,3368.3,0.93451374]
[1768425494550,6.89130902,3369.2,3368.3,0.93451374]
[1768425495366,6.89130902,3369.2,3368.3,1.36437526]
[1768425495562,0.95514823,3369.1,3368.3,0.42986152]
[1768425495768,0.95514823,3369.1,3368.1,0.93451374]
[1768425496889,2.96823983,3369.0,3368.1,0.93451374]
[1768425498286,0.95514823,3369.4,3368.2,0.93451374]
[1768425498473,5.93559874,3369.5,3368.4,0.93451374]
[1768425498678,6.89074697,3369.5,3368.4,0.93451374]
[1768425498875,3.92277146,3369.7,3368.5,0.93451374]
[1768425499075,6.89039469,3369.7,3368.7,0.93451374]
[1768425499280,6.89039469,3369.7,3368.8,0.395]
[1768425500671,6.89039469,3369.7,3368.8,1.33957629]
[1768425500989,0.97529972,3369.6,3368.8,0.395]
[1768425502177,0.90397743,3369.5,3368.8,0.395]
[1768425502378,1.88486214,3369.5,3368.8,0.395]
[1768425502973,5.9357749,3369.4,3368.8,0.395]
[1768425503372,2.96788745,3369.4,3368.8,0.395]
[1768425504664,2.96981233,3369.5,3368.9,0.97423134]
[1768425505195,0.002,3369.5,3368.9,0.97423134]
[1768425505568,0.002,3369.5,3368.9,1.63915874]
[1768425505764,0.002,3369.5,3368.8,0.395]
[1768425505765,0.90397743,3369.5,3368.8,0.395]
[1768425505964,0.90397743,3369.5,3368.6,0.001]
[1768425506177,0.90397743,3369.5,3368.6,0.97523134]
[1768425506470,0.002,3369.5,3368.7,0.97423134]
[1768425506683,0.002,3369.5,3368.7,1.00391638]
[1768425506991,0.002,3369.5,3368.9,0.97423134]
[1768425508368,0.002,3369.8,3369.2,5.2790427]
[1768425508693,0.002,3369.8,3369.0,0.97423134]
[1768425509473,0.90397743,3369.8,3368.8,0.96475484]
[1768425509678,0.90397743,3369.8,3368.6,0.97523134]
[1768425509873,0.90397743,3369.8,3368.6,0.001]
[1768425510075,0.002,3370.2,3369.7,5.2790427]
[1768425510363,0.90197743,3371.0,3370.1,0.97423134]
[1768425510565,2.9656545,3372.0,3370.1,0.95492605]
[1768425510566,0.90397743,3371.2,3370.1,0.95492605]
[1768425510870,0.90397743,3370.9,3370.1,0.63886755]
[1768425512177,3.87055674,3370.9,3370.1,0.63886755]
[1768425512393,0.90397743,3370.9,3370.1,0.63886755]
[1768425512593,3.87054564,3370.9,3370.1,0.63886755]
[1768425512782,3.8705502,3370.9,3370.1,0.63886755]
[1768425513818,0.90397743,3370.9,3370.1,0.63886755]
[1768425513971,0.90397743,3370.9,3370.2,0.45804566]
[1768425514873,0.002,3370.6,3370.2,0.45804566]
[1768425518180,0.002,3370.6,3370.3,0.97423134]
[1768425518384,0.002,3370.6,3370.2,3.42519079]
[1768425518385,0.002,3370.9,3370.5,0.97423134]
[1768425518578,0.002,3371.2,3370.4,2.96692632]
[1768425518579,0.002,3371.2,3370.6,0.97423134]
[1768425518781,0.002,3371.2,3370.7,1.66504779]
[1768425520104,0.90197743,3372.1,3370.8,0.97423134]
[1768425520304,3.86934244,3372.3,3371.0,0.97423134]
[1768425520603,3.86934244,3372.3,3371.2,0.97423134]
[1768425520801,0.90197743,3372.2,3371.2,0.97423134]
[1768425521193,0.90197743,3372.2,3370.8,3.94088217]
[1768425521577,0.90197743,3372.2,3370.7,3.65749704]
[1768425521778,0.90197743,3372.2,3370.7,0.69081645]
[1768425521979,0.90197743,3372.0,3370.7,0.69081645]
[1768425522409,0.98000725,3372.1,3370.0,0.395]
[1768425522410,0.90197743,3371.8,3370.1,2.96724837]
[1768425522583,0.90197743,3371.8,3370.2,0.97423134]
[1768425522784,0.90197743,3371.6,3370.0,1.36923134]
[1768425523100,0.90197743,3371.6,3370.0,4.33657416]
[1768425523294,0.90197743,3371.6,3370.1,2.96727011]
[1768425523509,0.90197743,3371.6,3370.1,3.69767311]
[1768425524285,0.90197743,3371.6,3370.1,4.67190445]
[1768425525194,0.397,3371.7,3370.1,4.67190445]
[1768425525195,0.90197743,3371.4,3370.1,1.70463434]
[1768425525516,0.90197743,3371.4,3369.9,3.94159654]
[1768425526210,0.90197743,3371.4,3369.9,0.97423134]
[1768425526513,0.90197743,3371.4,3369.9,3.94162217]
[1768425526710,0.88650675,3371.4,3370.0,2.96732346]
[1768425526916,0.88650675,3371.4,3369.9,0.97423134]
[1768425527095,0.002,3371.1,3369.9,0.97423134]
[1768425527296,3.86848664,3371.0,3370.0,2.96733229]
[1768425528710,2.96650921,3371.0,3370.0,2.96733229]
[1768425529014,0.90197743,3370.9,3370.0,3.94156363]
[1768425529918,3.868581,3370.9,3370.1,0.97423134]
[1768425530421,3.868581,3370.9,3369.4,8.90360312]
[1768425530422,0.95519968,3370.8,3369.9,0.95062918]
[1768425530629,0.95519968,3370.8,3369.5,0.95062918]
[1768425532229,0.95519968,3370.6,3369.7,0.95062918]
[1768425532529,3.92188911,3370.8,3369.7,0.95062918]
[1768425532732,3.92188911,3370.8,3370.6,0.13923612]
[1768425532891,3.92188911,3370.8,3370.6,0.12786443]
[1768425533293,3.36357898,3370.9,3370.6,0.12786443]
[1768425533509,2.96657898,3370.9,3370.6,0.12786443]
[1768425533706,3.36357898,3370.9,3370.6,0.12786443]
[1768425536331,7.28535764,3370.9,3370.6,0.12786443]
[1768425536496,8.0140934,3370.9,3370.1,0.95062918]
[1768425536695,0.95519968,3370.8,3369.7,0.95062918]
[1768425537006,0.95519968,3370.8,3369.8,0.95062918]
[1768425537927,0.95519968,3370.8,3369.6,0.95062918]
[1768425538242,0.95519968,3370.7,3369.6,0.95062918]
[1768425538535,6.88886134,3370.6,3369.6,0.95062918]
[1768425538740,0.95519968,3370.5,3369.4,0.95062918]
[1768425539598,0.95519968,3370.5,3369.5,0.95062918]
[1768425539794,3.36383083,3370.6,3370.1,0.001]
[1768425539998,3.36583083,3370.6,3370.1,0.001]
[1768425540615,0.399,3370.6,3370.1,0.001]
[1768425541138,3.36583401,3370.6,3370.1,0.001]
[1768425543312,2.96883401,3370.6,3370.1,0.001]
[1768425544235,3.92403369,3370.6,3370.1,0.001]
[1768425545111,7.61984541,3370.6,3370.1,0.001]
[1768425546337,4.6530114,3370.6,3370.1,0.001]
[1768425547443,7.61984541,3370.6,3370.1,0.001]
[1768425547933,0.95519968,3370.5,3370.1,0.001]
[1768425549736,3.92220656,3370.4,3370.1,0.001]
[1768425549907,0.95519968,3370.3,3370.1,0.001]
[1768425551132,3.76871766,3370.4,3370.1,0.001]
[1768425551628,0.002,3370.6,3370.1,0.001]
[1768425552409,0.002,3370.6,3370.4,0.001]
[1768425559515,0.95719968,3370.6,3370.4,0.001]
[1768425560358,3.92410689,3370.6,3370.4,0.001]
[1768425560636,0.002,3370.6,3370.4,0.001]
[1768425561029,3.93963611,3370.6,3370.4,0.001]
[1768425562239,4.33663611,3370.6,3370.4,0.001]
[1768425562533,0.97078633,3370.5,3370.4,0.001]
[1768425564138,0.97078633,3370.5,3370.1,0.001]
[1768425564317,0.97078633,3370.4,3370.1,0.001]
[1768425564807,2.96709491,3370.3,3370.1,0.001]
[1768425565338,3.93783521,3370.4,3370.1,0.001]
[1768425566318,0.399,3370.6,3370.1,0.001]
[1768425566916,3.36585422,3370.6,3370.1,0.001]
[1768425568349,4.33664055,3370.6,3370.1,0.001]
[1768425569022,0.97078633,3370.5,3369.1,0.001]
[1768425570746,0.97078633,3370.3,3369.1,0.001]
[1768425572761,0.97078633,3370.1,3369.1,0.99410087]
[1768425574559,0.97078633,3370.1,3369.1,0.001]
[1768425574926,0.97078633,3369.9,3369.1,0.001]
[1768425575260,0.97078633,3369.7,3369.1,0.001]
[1768425576760,0.97078633,3369.7,3369.4,0.001]
[1768425576939,0.97078633,3369.5,3369.1,0.001]
[1768425578659,3.93840956,3369.7,3369.1,0.001]
[1768425579253,0.97078633,3369.6,3369.1,0.001]
[1768425580959,3.9384993,3369.6,3369.1,0.001]
[1768425581346,0.97078633,3369.5,3369.1,0.001]
[1768425583334,0.97078633,3369.3,3368.6,0.001]
[1768425585356,3.69940594,3370.6,3369.3,0.99310087]
[1768425585535,3.69940594,3370.6,3369.5,0.99310087]
[1768425585536,3.36686593,3370.6,3369.5,0.99310087]
[1768425585742,0.002,3370.6,3369.5,0.99310087]
[1768425586065,0.398,3370.5,3369.5,0.99310087]
[1768425586763,1.37078633,3370.6,3369.5,0.99310087]
[1768425587349,1.80473125,3370.6,3369.5,4.58775637]
[1768425588768,1.80473125,3370.6,3369.6,0.99310087]
[1768425588956,1.40673125,3370.6,3369.6,0.99310087]
[1768425589270,0.002,3370.2,3369.6,0.99310087]
[1768425589437,0.002,3370.6,3369.8,0.99310087]
[1768425589641,0.002,3370.5,3369.8,0.99310087]
[1768425592040,0.9038012,3370.5,3369.6,0.99208852]
[1768425592368,0.9038012,3370.5,3369.6,3.95979792]
[1768425592668,0.9038012,3370.5,3369.7,0.7555576]
[1768425592869,0.9038012,3370.5,3369.7,3.72316704]
[1768425593173,0.9038012,3370.5,3369.7,0.7555576]
[1768425594082,0.002,3370.5,3369.7,4.71526677]
[1768425594281,0.002,3370.5,3369.8,0.99208852]
[1768425594584,0.002,3370.5,3369.9,0.99208852]
[1768425596269,0.002,3370.5,3369.9,3.95948783]
[1768425598052,0.002,3370.5,3370.0,3.9594411]
[1768425599884,0.002,3370.6,3370.0,0.99208852]
[1768425600545,0.9038012,3370.6,3369.8,0.47153274]
[1768425600955,0.9038012,3370.6,3369.8,1.46362126]
[1768425601161,0.9038012,3370.6,3369.9,1.43521241]
[1768425601368,0.4,3370.9,3370.1,0.99208852]
[1768425601762,1.3018012,3370.9,3370.1,0.99308852]
[1768425601962,1.3018012,3370.9,3370.6,0.02049448]
[1768425602164,0.9018012,3370.8,3370.6,0.02049448]
[1768425604074,0.002,3371.1,3370.7,0.99208852]
[1768425604273,0.9018012,3371.8,3370.6,1.012583]
[1768425604274,0.9018012,3371.7,3370.6,1.012583]
[1768425604472,0.9018012,3371.7,3370.7,0.39794216]
[1768425605385,0.9018012,3371.7,3370.6,0.02049448]
[1768425606604,0.9018012,3371.5,3370.6,0.02049448]
[1768425608690,0.9018012,3371.4,3370.6,0.02049448]
[1768425610694,0.9018012,3371.2,3370.6,0.02049448]
[1768425610993,0.9018012,3370.9,3370.1,0.001]
[1768425611294,0.9018012,3370.7,3370.1,0.001]
[1768425611692,0.9018012,3370.6,3370.1,0.001]
[1768425612878,0.9018012,3370.4,3370.1,0.001]
[1768425613994,0.9018012,3370.8,3370.1,0.001]
[1768425614196,0.9018012,3370.8,3370.4,0.001]
[1768425614394,0.9018012,3370.6,3370.4,0.001]
[1768425615777,3.86869545,3370.6,3370.4,0.001]
[1768425615988,0.9018012,3370.5,3370.4,0.001]
[1768425617725,0.9018012,3370.5,3369.4,0.99308852]
[1768425618038,0.9018012,3370.3,3369.4,0.99308852]
[1768425619205,0.9018012,3370.2,3369.4,0.001]
[1768425619585,0.9018012,3370.0,3369.4,0.001]
[1768425621790,0.91654415,3369.8,3369.4,0.001]
[1768425624326,3.88415361,3369.8,3369.4,0.001]
[1768425624620,4.56931368,3369.8,3369.4,0.001]
[1768425624804,0.91654415,3369.7,3369.4,0.001]
[1768425625609,3.65276953,3369.8,3369.4,0.001]
[1768425626111,2.9672882,3370.1,3369.4,0.001]
[1768425626423,1.31454415,3370.1,3369.4,0.001]
[1768425626634,4.28186192,3370.1,3369.4,0.001]
[1768425626936,4.28186192,3370.1,3369.7,0.001]
[1768425628229,0.91654415,3370.0,3369.7,0.001]
[1768425628527,2.9674471,3369.9,3369.7,0.001]
[1768425629227,3.88399125,3369.9,3369.7,0.001]
[1768425630527,2.96735905,3370.0,3369.7,0.001]
[1768425631825,3.8839032,3370.0,3369.7,0.001]
[1768425632135,7.57618435,3370.0,3369.7,0.001]
[1768425635210,7.57618435,3370.0,3369.2,0.92026499]
[1768425636408,1.64146625,3370.0,3369.2,0.92026499]
[1768425636605,2.96730237,3370.1,3369.2,0.92026499]
[1768425636806,3.36530237,3370.1,3369.2,0.92026499]
[1768425637002,6.33262616,3370.1,3369.2,0.92026499]
[1768425637419,0.91654415,3370.0,3369.2,0.92026499]
[1768425637633,0.91654415,3370.0,3368.8,0.92026499]
[1768425637833,0.91654415,3369.7,3368.6,0.001]
[1768425638138,5.27469479,3369.8,3368.6,0.001]
[1768425638139,0.91654415,3369.4,3368.6,0.001]
[1768425639224,2.96797554,3369.3,3368.6,0.92126499]
[1768425639517,3.88445838,3369.4,3368.6,0.92126499]
[1768425640514,6.85237261,3369.4,3368.6,0.92126499]
[1768425640726,7.53760987,3369.4,3368.6,0.92126499]
[1768425646530,4.56969564,3369.4,3368.6,0.92126499]
[1768425646735,7.53760987,3369.4,3368.6,0.92126499]
[1768425648748,7.53760987,3369.4,3368.6,0.001]
[1768425648749,0.91654415,3369.3,3368.6,0.001]
[1768425649743,2.96791423,3369.4,3368.6,0.95095091]
[1768425649939,5.93582846,3369.4,3368.6,0.92126499]
[1768425650633,2.96791423,3369.4,3368.6,0.92126499]
[1768425651032,2.96791423,3369.4,3368.9,0.001]
[1768425651836,5.93582846,3369.4,3368.9,0.001]
[1768425652156,6.6266336,3369.4,3368.9,0.001]
[1768425654464,0.002,3369.7,3368.9,0.9839285]
[1768425654837,0.002,3369.7,3369.1,0.9829285]
[1768425655238,0.002,3369.7,3369.0,0.9829285]
[1768425656536,0.002,3369.7,3369.1,0.9829285]
[1768425660042,0.002,3369.7,3369.2,0.9829285]
[1768425660242,0.002,3369.7,3369.4,0.9829285]
[1768425661875,0.002,3370.0,3369.7,0.9829285]
[1768425662293,0.002,3370.0,3369.3,1.37803556]
[1768425662457,0.002,3370.0,3369.3,0.39510706]
[1768425662773,0.002,3370.0,3369.3,1.37803556]
[1768425662961,0.002,3370.0,3369.4,0.4346084]
[1768425663542,0.002,3369.7,3369.4,1.4175369]
[1768425663745,0.002,3370.0,3369.7,0.9829285]
[1768425666491,0.002,3370.0,3369.8,0.9829285]
[1768425666655,3.93708213,3370.6,3369.8,0.9829285]
[1768425667880,0.97022291,3370.5,3369.6,0.9829285]
[1768425668065,2.96700688,3370.4,3369.6,1.37800372]
[1768425668384,2.96700688,3370.4,3369.7,0.9829285]
[1768425669786,3.93722979,3370.4,3369.7,0.9829285]
[1768425670081,3.93722979,3370.4,3369.6,0.39507522]
[1768425670387,0.97022291,3370.4,3369.6,0.39507522]
[1768425670549,0.97022291,3370.4,3369.7,0.4345799]
[1768425670753,3.93725387,3370.4,3369.6,0.39507522]
[1768425671472,0.97022291,3370.4,3369.6,0.39507522]
[1768425671964,3.93724666,3370.4,3369.6,1.37800372]
[1768425673183,0.97022291,3370.4,3369.6,1.37800372]
[1768425673885,3.9372572,3370.4,3369.6,1.37800372]
[1768425674054,3.9372304,3370.4,3369.7,0.43457773]
[1768425674255,0.97022291,3370.4,3369.7,0.43457773]
[1768425674798,3.9372385,3370.4,3369.7,0.43457773]
[1768425675693,0.97022291,3370.4,3369.7,0.43457773]
[1768425675857,0.97022291,3370.4,3369.6,0.9829285]
[1768425676269,3.93724284,3370.4,3369.9,0.001]
[1768425676470,0.002,3370.1,3369.9,0.001]
[1768425702242,0.96013162,3370.0,3369.1,0.396]
[1768425702446,0.96013162,3369.8,3369.1,0.396]
[1768425703743,0.96013162,3369.8,3369.1,1.32994754]
[1768425704465,0.96013162,3369.7,3368.8,0.93394754]
[1768425704751,0.96013162,3369.7,3368.5,0.93394754]
[1768425704913,0.96013162,3369.5,3368.5,0.93394754]
[1768425705522,0.96013162,3369.5,3368.3,3.90277817]
[1768425706549,0.96013162,3369.3,3368.4,0.93394754]
[1768425707046,0.96013162,3369.3,3368.2,0.396]
[1768425707047,0.96013162,3369.3,3368.2,4.29889087]
[1768425707421,0.96013162,3369.3,3368.2,1.32994754]
[1768425707831,0.96013162,3369.3,3368.3,0.93394754]
[1768425708030,0.96013162,3369.3,3368.2,0.396]
[1768425708233,0.96013162,3369.3,3368.2,1.32994754]
[1768425708551,0.96013162,3369.1,3368.2,1.32994754]
[1768425709416,0.96013162,3369.1,3368.2,0.396]
[1768425710059,0.96013162,3369.1,3368.1,0.93394754]
[1768425710358,1.64975751,3369.0,3368.1,0.93394754]
[1768425710647,0.99521301,3368.9,3368.1,0.93394754]
[1768425710950,3.96361359,3368.9,3368.1,0.93394754]
[1768425711446,3.96354804,3368.9,3368.1,0.93394754]
[1768425712218,3.96354804,3368.9,3368.5,0.001]
[1768425712467,4.72569245,3368.9,3368.5,0.001]
[1768425713830,0.99521301,3369.2,3367.9,0.92484454]
[1768425714032,0.99521301,3369.4,3368.1,0.92484454]
[1768425714225,0.99521301,3369.4,3368.3,0.92484454]
[1768425714422,0.99521301,3369.4,3368.5,0.92484454]
[1768425714625,0.99521301,3369.4,3368.6,0.02968592]
[1768425715059,3.96316436,3369.4,3368.6,0.95453046]
[1768425715849,0.99521301,3369.6,3368.6,0.92484454]
[1768425716032,1.15789134,3369.6,3368.6,0.92484454]
[1768425716239,0.99521301,3369.5,3368.6,0.92484454]
[1768425717141,3.9630294,3369.5,3368.6,0.92484454]
[1768425717958,3.9630294,3369.5,3368.7,0.92484454]
[1768425718136,3.96302208,3369.5,3368.7,0.92484454]
[1768425718961,0.99521301,3369.4,3368.5,0.92484454]
[1768425719163,2.96797554,3369.3,3368.5,0.92484454]
[1768425719366,0.99521301,3369.3,3368.5,0.92484454]
[1768425721243,3.96320687,3369.3,3368.5,0.92484454]
[1768425722544,0.99521301,3369.3,3368.5,3.89351594]
[1768425722747,0.99521301,3369.3,3368.5,4.5797526]
[1768425724264,0.99521301,3369.3,3368.6,0.92484454]
[1768425724571,0.99521301,3369.5,3368.6,0.92484454]
[1768425724951,0.002,3369.0,3368.6,0.92484454]
[1768425725666,0.002,3369.0,3368.8,0.92484454]
[1768425725867,0.002,3369.3,3368.9,0.92484454]
[1768425726069,2.96757934,3369.8,3369.0,0.92484454]
[1768425726368,3.96279235,3369.8,3369.0,0.92484454]
[1768425727250,6.93038483,3369.8,3369.0,0.92484454]
[1768425727450,0.99521301,3369.7,3369.0,0.92484454]
[1768425728981,3.96286175,3369.7,3368.8,0.92484454]
[1768425729151,3.96286175,3369.7,3368.8,2.20773381]
[1768425732574,3.96286123,3369.7,3368.8,2.20773381]
[1768425732775,0.99521301,3369.7,3368.8,4.25128231]
[1768425732979,0.99521301,3370.0,3368.9,0.92484454]
[1768425733282,0.99521301,3369.9,3368.9,0.92484454]
[1768425733579,3.96259019,3370.0,3369.1,0.92484454]
[1768425733784,0.99521301,3370.0,3369.2,0.95452517]
[1768425733986,0.002,3370.1,3369.2,0.92484454]
[1768425734294,0.002,3370.1,3369.5,0.92484454]
[1768425734984,0.002,3370.1,3369.6,0.92484454]
[1768425735274,0.002,3370.1,3369.7,1.84205486]
[1768425737453,0.002,3369.8,3369.7,1.84205486]
[1768425737654,0.002,3370.1,3369.7,1.84205486]
[1768425737985,0.002,3370.1,3369.7,4.80967606]
[1768425738692,0.002,3370.1,3369.7,1.84205486]
[1768425738984,0.002,3370.1,3369.8,1.70259689]
[1768425739188,0.002,3370.7,3370.1,3.89203705]
[1768425739781,0.002,3370.7,3370.1,0.92484454]
[1768425740077,0.002,3370.7,3370.1,3.89208043]
[1768425741377,0.95276244,3371.3,3370.4,0.94266778]
[1768425742749,0.002,3371.4,3370.4,0.94266778]
[1768425743373,0.002,3371.4,3370.6,0.94266778]
[1768425745385,0.002,3371.4,3370.6,3.90947734]
[1768425745956,0.002,3371.4,3370.6,9.18902292]
[1768425746352,0.002,3371.4,3370.7,0.94266778]
[1768425746564,0.002,3371.4,3370.8,2.15825316]
[1768425747421,0.002,3371.4,3370.9,2.96656679]
[1768425747569,0.002,3371.4,3370.8,1.21558538]
[1768425748082,0.95476244,3371.4,3370.8,1.21558538]
[1768425748386,0.95476244,3371.4,3370.6,3.90944018]
[1768425749986,0.002,3371.1,3370.6,3.90944018]
[1768425752593,0.002,3371.1,3370.6,2.9667724]
[1768425753491,0.002,3371.1,3370.6,3.90944018]
[1768425753661,0.002,3371.1,3370.6,6.87627101]
[1768425753860,0.002,3371.1,3370.7,1.21568166]
[1768425754187,0.002,3371.1,3370.8,2.9666548]
[1768425754389,0.002,3371.4,3370.8,2.9666548]
[1768425754590,0.002,3371.4,3370.8,3.90932258]
[1768425755877,0.002,3371.4,3370.8,2.9666548]
[1768425756085,0.002,3371.4,3370.9,0.51250042]
[1768425756374,0.95476244,3371.4,3370.9,0.51250042]
[1768425758815,0.002,3371.8,3371.3,6.22221336]
[1768425758982,0.95276244,3372.1,3371.4,0.94266778]
[1768425759311,0.95276244,3372.1,3371.1,5.27954558]
[1768425759477,3.91827889,3372.1,3371.4,0.02049486]